fUST/lending_fUST_20240807
["ID","MTS","AMOUNT","RATE_DAILY","PERIOD"]
[334329725,1722983448975,-609.8,0.00038356,14]
[334329726,1722983448985,-500.0,0.00038356,14]
[334329727,1722983448995,-500.0,0.00038356,14]
[334329728,1722983449004,-500.0,0.00038356,14]
[334329729,1722983449014,-2178.51,0.00038356,14]
[334329730,1722983449028,-500.0,0.00038356,14]
[334329731,1722983449038,-500.0,0.00038356,14]
[334329732,1722983449050,-500.0,0.00038356,14]
[334329733,1722983449059,-500.0,0.00038356,14]
[334329734,1722983449070,-500.0,0.00038356,14]
[334329735,1722983449080,-1271.1,0.00038356,14]
[334329736,1722983449089,-500.0,0.00038356,14]
[334329737,1722983449098,-500.0,0.00038356,14]
[334329738,1722983449107,-500.0,0.00038356,14]
[334329739,1722983449117,-500.0,0.00038356,14]
[334329740,1722983449126,-908.4,0.00038356,14]
[334329741,1722983449136,-681.64,0.00038356,14]
[334329742,1722983449145,-961.02,0.00038356,14]
[334329743,1722983449155,-500.0,0.00038356,14]
[334329744,1722983449165,-567.76,0.00038356,14]
[334329745,1722983449174,-500.0,0.00038356,14]
[334329746,1722983449184,-679.95,0.00038356,14]
[334329747,1722983449195,-500.0,0.00038356,14]
[334329748,1722983449205,-2830.35,0.00038356,14]
[334329749,1722983449217,-500.0,0.00038356,14]
[334329750,1722983449230,-1853.81,0.00038356,14]
[334329751,1722983449240,-1000.0,0.00038356,5]
[334329752,1722983449248,-681.08,0.00038356,14]
[334329753,1722983449258,-500.0,0.00038356,14]
[334329754,1722983449270,-500.0,0.00038356,14]
[334329755,1722983449281,-500.0,0.00038356,14]
[334329756,1722983449291,-785.81,0.00038356,14]
[334329757,1722983449302,-2308.45,0.00038356,14]
[334329758,1722983449312,-1898.65,0.00038356,14]
[334329759,1722983449321,-500.0,0.00038356,14]
[334329760,1722983449331,-500.0,0.00038356,14]
[334329761,1722983449341,-500.0,0.00038356,6]
[334329762,1722983449351,-1111.0,0.00038356,14]
[334329763,1722983449361,-500.0,0.00038356,14]
[334329764,1722983449370,-500.0,0.00038356,14]
[334329765,1722983449380,-521.23,0.00038356,14]
[334329766,1722983449391,-500.0,0.00038356,14]
[334329767,1722983449401,-500.0,0.00038356,14]
[334329768,1722983449410,-545.81,0.00038356,14]
[334329769,1722983449420,-500.0,0.00038356,14]
[334329770,1722983449430,-500.0,0.00038356,14]
[334329771,1722983449440,-614.96149429,0.00038356,14]
[334329772,1722983449450,-1129.25,0.00038356,14]
[334329773,1722983449460,-515.57,0.00038356,14]
[334329774,1722983449470,-500.0,0.00038356,14]
[334329775,1722983449480,-500.0,0.00038356,14]
[334329776,1722983449490,-500.0,0.00038356,14]
[334329777,1722983449499,-671.18,0.00038356,14]
[334329778,1722983449509,-500.0,0.00038356,14]
[334329779,1722983449519,-500.0,0.00038356,14]
[334329780,1722983449532,-500.0,0.00038356,14]
[334329781,1722983449542,-1481.69,0.00038356,14]
[334329782,1722983449551,-226.51614372,0.00038356,14]
[334329783,1722983449561,-1030.88,0.00038356,14]
[334329784,1722983449570,-1259.89,0.00038356,14]
[334329785,1722983449580,-500.0,0.00038356,14]
[334329786,1722983449589,-3959.26,0.00038356,14]
[334329787,1722983449598,-1233.68,0.00038356,14]
[334329788,1722983449608,-500.0,0.00038356,7]
[334329789,1722983449618,-500.0,0.00038356,14]
[334329790,1722983449629,-2106.1,0.00038356,14]
[334329791,1722983449638,-500.0,0.00038356,14]
[334329792,1722983449647,-868.67,0.00038356,14]
[334329793,1722983449658,-3136.15,0.00038356,14]
[334329794,1722983449667,-846.07,0.00038356,14]
[334329795,1722983449677,-500.0,0.00038356,14]
[334329796,1722983449686,-500.0,0.00038356,14]
[334329797,1722983449696,-550.75238231,0.00038356,14]
[334329798,1722983449705,-500.0,0.00038356,14]
[334329799,1722983449714,-597.4393275,0.00038356,14]
[334329800,1722983449725,-500.0,0.00038356,14]
[334329801,1722983449735,-599.57,0.00038356,14]
[334329802,1722983449745,-500.0,0.00038356,14]
[334329803,1722983449754,-974.94,0.00038356,14]
[334329804,1722983449764,-500.0,0.00038356,14]
[334329805,1722983449776,-637.84,0.00038356,14]
[334329806,1722983449786,-1302.73,0.00038356,14]
[334329807,1722983449795,-500.0,0.00038356,14]
[334329808,1722983449805,-500.0,0.00038356,14]
[334329809,1722983449814,-500.0,0.00038356,14]
[334329810,1722983449823,-500.40532915,0.00038356,14]
[334329811,1722983449832,-500.0,0.00038356,14]
[334329812,1722983449842,-500.0,0.00038356,14]
[334329813,1722983449853,-500.0,0.00038356,14]
[334329814,1722983449863,-500.0,0.00038356,2]
[334329815,1722983449872,-3405.75,0.00038356,14]
[334329816,1722983449881,-500.0,0.00038356,14]
[334329817,1722983449890,-500.0,0.00038356,14]
[334329818,1722983449900,-749.56,0.00038356,14]
[334329819,1722983449909,-500.0,0.00038356,14]
[334329820,1722983449921,-678.06,0.00038356,14]
[334329821,1722983449930,-500.0,0.00038356,14]
[334329822,1722983449940,-500.0,0.00038356,14]
[334329823,1722983449949,-2974.75,0.00038356,14]
[334329824,1722983449958,-1396.13,0.00038356,14]
[334329825,1722983449968,-500.0,0.00038356,14]
[334329826,1722983449977,-1132.13,0.00038356,14]
[334329827,1722983449987,-500.0,0.00038356,14]
[334329828,1722983449997,-500.0,0.00038356,14]
[334329829,1722983450006,-244.8856554,0.00038356,14]
[334329830,1722983450015,-500.0,0.00038356,14]
[334329831,1722983450027,-500.0,0.00038356,14]
[334329832,1722983450036,-500.0,0.00038356,14]
[334329833,1722983450045,-500.0,0.00038356,14]
[334329834,1722983450055,-500.0,0.00038356,14]
[334329835,1722983450064,-500.0,0.00038356,14]
[334329836,1722983450073,-500.0,0.00038356,14]
[334329837,1722983450082,-525.55163915,0.00038356,14]
[334329838,1722983450091,-1114.13,0.00038356,14]
[334329839,1722983450101,-500.0,0.00038356,14]
[334329840,1722983450110,-1370.27,0.00038356,14]
[334329841,1722983450120,-2297.19,0.00038356,14]
[334329842,1722983450129,-500.0,0.00038356,14]
[334329843,1722983450138,-1437.42,0.00038356,14]
[334329844,1722983450153,-538.14,0.00038356,14]
[334329845,1722983450163,-500.0,0.00038356,14]
[334329846,1722983450172,-500.0,0.00038356,14]
[334329847,1722983450181,-1046.87,0.00038356,14]
[334329848,1722983450194,-500.0,0.00038356,14]
[334329849,1722983450203,-533.05,0.00038356,14]
[334329850,1722983450214,-500.0,0.00038356,14]
[334329851,1722983450227,-500.0,0.00038356,14]
[334329852,1722983450237,-377.36913114,0.00038356,14]
[334329853,1722983450469,273.37336231,9.9e-05,2]
[334329854,1722983455863,273.37336231,9.9e-05,2]
[334329855,1722983464715,273.37336231,9.9e-05,2]
[334329856,1722983472560,273.37336231,9.9e-05,2]
[334329857,1722983480604,254.1736609,9.9e-05,2]
[334329858,1722983491638,156.73199194,0.00012,2]
[334329859,1722983500598,961.20511993,0.00015,2]
[334329860,1722983522000,1991.50486571,0.00012,2]
[334329861,1722983524059,7774.59967491,0.00012,2]
[334329862,1722983524664,611.93757659,9.9e-05,2]
[334329863,1722983530167,300.48712991,0.00014,2]
[334329867,1722983737435,165.430582,0.00014247,2]
[334329872,1722983969877,154.79103211,0.00015954,2]
[334329873,1722984011227,209.14855116,0.00015954,2]
[334329888,1722984085582,154.60575532,0.00015954,2]
[334329889,1722984100547,154.60575532,0.00015954,2]
[334329890,1722984112937,157.44576906,0.00015954,2]
[334329899,1722984140842,7001.07154863,0.00015954,2]
[334329900,1722984160998,3088.06064461,0.00015954,2]
[334329913,1722984308376,1668.36277103,0.00015954,2]
[334329914,1722984332933,269.66609186,0.00015954,2]
[334329916,1722984369313,532.27882907,0.00015954,2]
[334329917,1722984381457,652.18280773,0.00015954,2]
[334329918,1722984385591,694.1093999,0.00015954,2]
[334329919,1722984388808,154.77557542,0.00015954,2]
[334329920,1722984389752,424.7108497,0.00015954,2]
[334329921,1722984393757,160.1642143,0.00015954,2]
[334329922,1722984404068,164.928936,0.00014247,2]
[334329923,1722984405725,413.01700224,0.00015954,2]
[334329924,1722984407253,375.39717836,0.00015954,2]
[334329925,1722984428154,-309.1495329,0.00016038,2]
[334329926,1722984428181,-395.58352467,0.00016038,2]
[334329927,1722984428203,-603.79164827,0.00016038,2]
[334329928,1722984428226,-204.08111002,0.00016038,2]
[334329929,1722984428252,-154.77557542,0.00016038,2]
[334329930,1722984428275,-306.225998,0.00016095,2]
[334329931,1722984428298,-205.1880395,0.00016095,2]
[334329932,1722984428321,-342.05014288,0.00016095,2]
[334329933,1722984428344,-300.0,0.00016109,2]
[334329934,1722984428368,-300.0,0.00016109,2]
[334329935,1722984428391,-154.77557542,0.0001611,2]
[334329936,1722984428416,-287.77266661,0.0001611,2]
[334329937,1722984428438,-319.72766707,0.0001611,2]
[334329938,1722984428462,-255.67468838,0.00016159,2]
[334329939,1722984428486,-106.12740139,0.00016969,2]
[334329941,1722984445248,-792.13995517,0.00016969,2]
[334329942,1722984448087,-1226.24878345,0.00016969,2]
[334329943,1722984448109,-269.83496717,0.0001772,2]
[334329944,1722984450114,-150.16503283,0.0001772,2]
[334329945,1722984450137,-71.71281943,0.00017722,2]
[334329957,1722984488339,239.20865639,9.9e-05,2]
[334329973,1722984550103,-250.0,0.00017702,2]
[334329974,1722984550126,-300.0,0.00017722,2]
[334329975,1722984550149,-300.0,0.00017722,2]
[334329976,1722984550172,-24900.0,0.00017723,2]
[334329977,1722984550197,-250.0,0.0001775,2]
[334329978,1722984550220,-209.366457,0.00017778,2]
[334329979,1722984550247,-250.0,0.00017799,2]
[334329980,1722984550270,-250.0,0.00017847,2]
[334329981,1722984550293,-250.0,0.00017896,2]
[334329982,1722984550318,-250.0,0.00017944,2]
[334329983,1722984550343,-250.0,0.00017993,2]
[334329984,1722984550365,-250.0,0.00018041,2]
[334329985,1722984550388,-250.0,0.0001809,2]
[334329986,1722984550411,-250.0,0.00018139,2]
[334329987,1722984550434,-250.0,0.00018187,2]
[334329988,1722984550456,-250.0,0.00018236,2]
[334329989,1722984550478,-250.0,0.00018284,2]
[334329990,1722984550500,-1214.45430369,0.0001833,2]
[334329991,1722984550522,-250.0,0.00018333,2]
[334329992,1722984550544,-250.0,0.00018381,2]
[334329993,1722984550573,-553.37477328,0.00018429,2]
[334329994,1722984550598,-40.86547397,0.0001843,2]
[334330004,1722984566214,437.78644205,9.9e-05,2]
[334330052,1722984631835,-209.13452603,0.0001843,2]
[334330054,1722984631846,-250.0,0.00018478,2]
[334330056,1722984631856,-250.0,0.00018527,2]
[334330058,1722984631866,-250.0,0.00018575,2]
[334330059,1722984631876,-250.0,0.00018624,2]
[334330061,1722984631885,-961.20511993,0.00018979,2]
[334330063,1722984631895,-961.20511993,0.00018989,2]
[334330065,1722984631906,-3087.44790236,0.00018999,2]
[334330066,1722984631916,-196.46943428,0.00019139,2]
[334330068,1722984631926,-531.8649221,0.00019155,2]
[334330070,1722984631936,-412.86461834,0.00019167,2]
[334330071,1722984631946,-171.553247,0.00019178,2]
[334330072,1722984631955,-300.0,0.00019999,2]
[334330073,1722984631966,-1438.50307528,0.00019999,2]
[334330074,1722984631975,-951.94046237,0.00019999,2]
[334330075,1722984631985,-1383.1311371,0.00019999,2]
[334330076,1722984631995,-294.13159854,0.0002,2]
[334330077,1722984632005,-241.66818964,0.0002,2]
[334330078,1722984632015,-486.40479735,0.0002028,2]
[334330079,1722984632290,-16.54618621,0.0002028,2]
[334330080,1722984632301,-171.553247,0.00020999,2]
[334330081,1722984632313,-154.60575532,0.00020999,2]
[334330082,1722984632323,-296.9978564,0.00021,2]
[334330083,1722984632334,-301.05042954,0.00021542,2]
[334330084,1722984632344,-1214.45430368,0.00021724,2]
[334330085,1722984632354,-243.0,0.00021999,2]
[334330086,1722984632364,-1214.45430368,0.00025119,2]
[334330087,1722984632373,-82.33791817,0.00026666,2]
[334330088,1722984632423,-127.02853883,0.00026666,2]
[334330089,1722984632433,-1214.45430368,0.00028513,2]
[334330090,1722984632442,-253.32,0.0002999,3]
[334330091,1722984632452,-151.0,0.0003,120]
[334330092,1722984632462,-7609.80370411,0.0003,2]
[334330093,1722984632474,-26485.2600046,0.0003,2]
[334330094,1722984637832,-705.39167507,0.0003,2]
[334330095,1722984637843,-12438.35286821,0.0003,2]
[334330096,1722984637854,-1001.25029103,0.00031,2]
[334330097,1722984637863,-4942.37867452,0.0003125,2]
[334330098,1722984637873,-178.701763,0.00031507,120]
[334330099,1722984637883,-164.928936,0.00031781,2]
[334330100,1722984637892,-1214.45430368,0.00031908,2]
[334330101,1722984637901,-4942.37867449,0.00032999,2]
[334330102,1722984637910,-165.0,0.00033,2]
[334330103,1722984637920,-151.0,0.00033151,120]
[334330104,1722984637929,-159.297406,0.00034389,2]
[334330105,1722984637939,-4942.37867449,0.00034747,2]
[334330106,1722984637950,-1214.45430368,0.00035302,2]
[334330107,1722984637960,-160.0,0.00036281,3]
[334330108,1722984637970,-151.0,0.00036301,120]
[334330109,1722984637980,-4942.37867449,0.00036496,2]
[334330110,1722984637990,-865.53,0.0003749,3]
[334330111,1722984637999,-346.21,0.00037498,3]
[334330112,1722984638009,-173.1,0.00037498,3]
[334330113,1722984638018,-247.71808358,0.00037499,15]
[334330114,1722984638028,-285.59965487,0.00037499,15]
[334330115,1722984638040,-500.0,0.00037499,15]
[334330116,1722984638050,-500.0,0.00037499,15]
[334330117,1722984638060,-500.0,0.00037499,15]
[334330118,1722984638069,-500.0,0.00037499,15]
[334330119,1722984638078,-639.54942598,0.00037499,15]
[334330120,1722984638087,-500.0,0.00037499,15]
[334330121,1722984638097,-500.0,0.00037499,15]
[334330122,1722984638106,-1000.0,0.000375,2]
[334330123,1722984638116,-150.112233,0.000375,7]
[334330124,1722984638125,-962.61,0.00037508,3]
[334330125,1722984638136,-692.42,0.00037508,3]
[334330126,1722984638145,-2134.78,0.00037528,3]
[334330127,1722984638155,-1778.99,0.00037528,3]
[334330128,1722984638165,-1482.49,0.00037528,3]
[334330129,1722984638175,-51946.5419097,0.00037538,4]
[334330131,1722984638184,-4236.9163295,0.00037566,2]
[334330133,1722984638193,-150.112233,0.000376,6]
[334330134,1722984638204,-153.0,0.00037671,2]
[334330136,1722984638215,-150.112233,0.000377,10]
[334330138,1722984638224,-150.112233,0.000378,5]
[334330140,1722984638233,-150.112233,0.000379,10]
[334330141,1722984638243,-150.112233,0.000379,9]
[334330143,1722984638252,-4236.9163295,0.0003791,2]
[334330145,1722984638262,-157.31396554,0.00037995,24]
[334330147,1722984638271,-150.112233,0.00038,6]
[334330148,1722984638280,-150.112233,0.000381,7]
[334330150,1722984638291,-4236.9163297,0.0003812,2]
[334330152,1722984638300,-150.112233,0.000382,10]
[334330154,1722984638309,-103893.083819,0.00038236,4]
[334330155,1722984638320,-4942.37867449,0.00038244,2]
[334330157,1722984638331,-500.0,0.00038245,30]
[334330158,1722984638342,-500.0,0.00038245,31]
[334330159,1722984638353,-500.0,0.00038245,32]
[334330160,1722984638362,-503.33472821,0.00038245,33]
[334330161,1722984638371,-2000.0,0.00038245,2]
[334330162,1722984638380,-31142.01216408,0.00038246,5]
[334330163,1722984638390,-1048.55716593,0.00038256,2]
[334330164,1722984638399,-237.854,0.00038269,2]
[334330165,1722984638409,-150.112233,0.000383,7]
[334330166,1722984638418,-150.112233,0.000383,6]
[334330167,1722984638427,-150.0,0.00038318,7]
[334330168,1722984638439,-5626.542,0.00038318,7]
[334330169,1722984638448,-51946.5419097,0.00038335,4]
[334330170,1722984638457,-103893.083819,0.00038335,4]
[334330171,1722984638467,-2000.0,0.00038344,45]
[334330172,1722984638477,-2000.0,0.00038344,45]
[334330173,1722984638486,-2000.0,0.00038344,45]
[334330174,1722984638495,-2000.0,0.00038344,45]
[334330175,1722984638504,-155.0,0.0003835,39]
[334330176,1722984638513,-1000.0,0.00038355,25]
[334330177,1722984638522,-11538.96986965,0.00038356,21]
[334330178,1722984638532,-1592.35764728,0.00038356,21]
[334330179,1722984638543,-500.0,0.00038356,14]
[334330180,1722984638552,-500.0,0.00038356,14]
[334330181,1722984638561,-500.0,0.00038356,14]
[334330182,1722984638571,-500.0,0.00038356,14]
[334330183,1722984638583,-500.0,0.00038356,14]
[334330184,1722984638593,-500.0,0.00038356,14]
[334330185,1722984638602,-500.0,0.00038356,14]
[334330186,1722984638611,-520.26,0.00038356,14]
[334330187,1722984638623,-500.0,0.00038356,14]
[334330188,1722984638632,-500.0,0.00038356,14]
[334330189,1722984638641,-500.0,0.00038356,14]
[334330190,1722984638652,-714.58,0.00038356,14]
[334330191,1722984638662,-540.95,0.00038356,14]
[334330192,1722984638671,-572.61,0.00038356,14]
[334330193,1722984638680,-1085.54,0.00038356,14]
[334330194,1722984638690,-500.0,0.00038356,14]
[334330195,1722984638699,-500.0,0.00038356,14]
[334330196,1722984638711,-523.07,0.00038356,14]
[334330197,1722984638723,-500.0,0.00038356,14]
[334330198,1722984638732,-500.0,0.00038356,14]
[334330199,1722984638742,-627.26,0.00038356,14]
[334330200,1722984638753,-500.0,0.00038356,14]
[334330201,1722984638763,-500.0,0.00038356,14]
[334330202,1722984638772,-212.56,0.00038356,14]
[334330203,1722984638782,-500.0,0.00038356,14]
[334330204,1722984638791,-342.27455418,0.00038356,14]
[334330205,1722984638800,-500.0,0.00038356,14]
[334330206,1722984638810,-500.0,0.00038356,14]
[334330207,1722984638819,-1207.39,0.00038356,14]
[334330208,1722984638829,-153.62724569,0.00038356,14]
[334330209,1722984638840,-209.66659886,0.00038356,14]
[334330210,1722984638850,-500.0,0.00038356,14]
[334330211,1722984638859,-500.0,0.00038356,14]
[334330212,1722984638868,-674.07,0.00038356,14]
[334330213,1722984638878,-500.0,0.00038356,14]
[334330214,1722984638887,-500.0,0.00038356,14]
[334330215,1722984638897,-500.0,0.00038356,14]
[334330216,1722984638906,-500.0,0.00038356,14]
[334330217,1722984638915,-500.0,0.00038356,6]
[334330218,1722984638924,-500.0,0.00038356,14]
[334330219,1722984638933,-500.0,0.00038356,14]
[334330220,1722984638943,-500.0,0.00038356,14]
[334330221,1722984638952,-500.0,0.00038356,14]
[334330222,1722984638961,-500.0,0.00038356,14]
[334330223,1722984638975,-500.0,0.00038356,14]
[334330224,1722984638989,-500.0,0.00038356,14]
[334330225,1722984638999,-500.0,0.00038356,14]
[334330226,1722984639008,-500.0,0.00038356,14]
[334330227,1722984639017,-500.0,0.00038356,14]
[334330228,1722984639027,-870.55,0.00038356,14]
[334330229,1722984639036,-500.0,0.00038356,14]
[334330230,1722984639046,-500.0,0.00038356,14]
[334330231,1722984639055,-500.0,0.00038356,14]
[334330232,1722984639064,-500.0,0.00038356,14]
[334330233,1722984639074,-500.0,0.00038356,14]
[334330234,1722984639083,-500.0,0.00038356,7]
[334330235,1722984639092,-1819.54,0.00038356,14]
[334330236,1722984639101,-1337.95,0.00038356,14]
[334330237,1722984639110,-444.62402132,0.00038356,14]
[334330238,1722984639120,-500.0,0.00038356,14]
[334330239,1722984639129,-500.0,0.00038356,14]
[334330240,1722984639139,-500.0,0.00038356,14]
[334330241,1722984639149,-500.0,0.00038356,14]
[334330242,1722984639158,-500.0,0.00038356,14]
[334330243,1722984639167,-500.0,0.00038356,14]
[334330244,1722984639176,-3005.48,0.00038356,14]
[334330245,1722984639186,-500.0,0.00038356,14]
[334330246,1722984639195,-500.0,0.00038356,14]
[334330247,1722984639204,-500.0,0.00038356,14]
[334330248,1722984639213,-500.0,0.00038356,14]
[334330249,1722984639223,-3252.08,0.00038356,14]
[334330250,1722984639232,-500.0,0.00038356,14]
[334330251,1722984639242,-718.33,0.00038356,14]
[334330252,1722984639251,-500.0,0.00038356,14]
[334330253,1722984639260,-500.0,0.00038356,14]
[334330255,1722984639269,-500.0,0.00038356,14]
[334330256,1722984639279,-500.0,0.00038356,14]
[334330257,1722984639288,-406.89113758,0.00038356,14]
[334330258,1722984639297,-500.0,0.00038356,14]
[334330259,1722984639307,-500.0,0.00038356,14]
[334330260,1722984639316,-500.0,0.00038356,14]
[334330261,1722984639326,-705.98,0.00038356,14]
[334330262,1722984639335,-518.29535683,0.00038356,14]
[334330263,1722984639345,-500.0,0.00038356,14]
[334330264,1722984639354,-500.0,0.00038356,14]
[334330265,1722984639363,-500.0,0.00038356,14]
[334330266,1722984639372,-500.0,0.00038356,14]
[334330267,1722984639382,-500.0,0.00038356,14]
[334330268,1722984639392,-1313.17,0.00038356,14]
[334330269,1722984639402,-500.0,0.00038356,14]
[334330270,1722984639411,-574.15930377,0.00038356,14]
[334330271,1722984639421,-661.47,0.00038356,14]
[334330272,1722984639431,-536.55,0.00038356,14]
[334330273,1722984639440,-510.84,0.00038356,14]
[334330274,1722984639449,-151.0,0.00038356,7]
[334330275,1722984639459,-151.0,0.00038356,7]
[334330276,1722984639468,-500.0,0.00038356,14]
[334330277,1722984639477,-526.21,0.00038356,14]
[334330278,1722984639487,-500.0,0.00038356,14]
[334330279,1722984639497,-648.87,0.00038356,14]
[334330280,1722984639506,-500.0,0.00038356,14]
[334330281,1722984639515,-500.0,0.00038356,14]
[334330282,1722984639525,-500.0,0.00038356,14]
[334330283,1722984639534,-500.0,0.00038356,14]
[334330284,1722984639544,-500.0,0.00038356,14]
[334330285,1722984639553,-523.72376375,0.00038356,14]
[334330286,1722984639562,-889.11,0.00038356,14]
[334330287,1722984639572,-1957.74,0.00038356,14]
[334330288,1722984639584,-500.0,0.00038356,14]
[334330289,1722984639594,-500.0,0.00038356,14]
[334330290,1722984639604,-500.0,0.00038356,14]
[334330291,1722984639614,-683.87,0.00038356,14]
[334330293,1722984639623,-522.63605615,0.00038356,14]
[334330294,1722984639633,-500.0,0.00038356,14]
[334330295,1722984639642,-500.0,0.00038356,14]
[334330296,1722984639651,-151.0,0.00038356,7]
[334330297,1722984639662,-151.0,0.00038356,7]
[334330298,1722984639672,-829.8,0.00038356,14]
[334330299,1722984639682,-151.0,0.00038356,7]
[334330300,1722984639691,-151.0,0.00038356,7]
[334330301,1722984639700,-151.0,0.00038356,7]
[334330302,1722984639710,-191.193015,0.00038356,7]
[334330303,1722984639719,-500.0,0.00038356,14]
[334330304,1722984639729,-500.0,0.00038356,14]
[334330305,1722984639738,-500.0,0.00038356,14]
[334330306,1722984639750,-867.52,0.00038356,14]
[334330307,1722984639760,-500.0,0.00038356,14]
[334330308,1722984639769,-2396.08,0.00038356,14]
[334330309,1722984639778,-500.0,0.00038356,14]
[334330310,1722984639788,-1160.74,0.00038356,14]
[334330311,1722984639797,-500.0,0.00038356,14]
[334330312,1722984639806,-500.0,0.00038356,14]
[334330313,1722984639816,-714.3,0.00038356,14]
[334330315,1722984639826,-736.11,0.00038356,14]
[334330316,1722984639835,-500.0,0.00038356,14]
[334330318,1722984639846,-500.0,0.00038356,14]
[334330321,1722984639856,-500.0,0.00038356,14]
[334330323,1722984639865,-500.0,0.00038356,14]
[334330324,1722984639875,-526.3,0.00038356,14]
[334330325,1722984639885,-500.0,0.00038356,14]
[334330326,1722984639895,-632.39,0.00038356,14]
[334330327,1722984639904,-500.0,0.00038356,14]
[334330328,1722984639912,-747.55,0.00038356,14]
[334330329,1722984639922,-1951.57,0.00038356,14]
[334330330,1722984639931,-500.0,0.00038356,14]
[334330331,1722984639940,-500.0,0.00038356,14]
[334330332,1722984639949,-316.62048415,0.00038356,14]
[334330333,1722984639958,-500.0,0.00038356,14]
[334330334,1722984639967,-500.0,0.00038356,14]
[334330335,1722984639976,-500.0,0.00038356,14]
[334330336,1722984639985,-500.0,0.00038356,14]
[334330337,1722984639995,-609.2,0.00038356,14]
[334330338,1722984640004,-500.0,0.00038356,14]
[334330339,1722984640014,-2671.44,0.00038356,14]
[334330340,1722984640023,-1218.14,0.00038356,14]
[334330341,1722984640032,-1228.62,0.00038356,14]
[334330342,1722984640042,-628.91211612,0.00038356,14]
[334330343,1722984640051,-531.9,0.00038356,14]
[334330344,1722984640061,-500.0,0.00038356,14]
[334330345,1722984640070,-500.0,0.00038356,14]
[334330346,1722984640079,-547.75,0.00038356,14]
[334330347,1722984640088,-500.0,0.00038356,14]
[334330348,1722984640097,-500.0,0.00038356,14]
[334330349,1722984640106,-2712.42,0.00038356,14]
[334330350,1722984640116,-483.74379695,0.00038356,14]
[334330351,1722984640126,-551.36056089,0.00038356,14]
[334330352,1722984640135,-518.12,0.00038356,14]
[334330353,1722984640144,-544.1,0.00038356,14]
[334330354,1722984640153,-500.0,0.00038356,14]
[334330355,1722984640162,-584.39,0.00038356,14]
[334330356,1722984640171,-586.55,0.00038356,14]
[334330357,1722984640180,-500.0,0.00038356,14]
[334330358,1722984640189,-753.07,0.00038356,14]
[334330359,1722984640198,-546.94,0.00038356,14]
[334330360,1722984640207,-500.0,0.00038356,14]
[334330361,1722984640217,-652.7,0.00038356,14]
[334330362,1722984640226,-1000.0,0.00038356,5]
[334330363,1722984640235,-500.0,0.00038356,14]
[334330364,1722984640245,-500.0,0.00038356,14]
[334330365,1722984640254,-500.0,0.00038356,14]
[334330366,1722984640263,-780.78,0.00038356,14]
[334330367,1722984640272,-500.0,0.00038356,14]
[334330368,1722984640281,-500.0,0.00038356,14]
[334330369,1722984640291,-500.0,0.00038356,14]
[334330370,1722984640301,-500.0,0.00038356,14]
[334330372,1722984640310,-500.0,0.00038356,14]
[334330374,1722984640321,-500.0,0.00038356,14]
[334330376,1722984640340,-1797.4,0.00038356,14]
[334330377,1722984640356,-651.62,0.00038356,14]
[334330379,1722984640376,-500.0,0.00038356,14]
[334330381,1722984640396,-500.0,0.00038356,14]